fUST/lending_fUST_20240804
["ID","MTS","AMOUNT","RATE_DAILY","PERIOD"]
[334091967,1722760238156,-500.0,0.00015497,2]
[334091968,1722760238165,-500.0,0.00015497,2]
[334091969,1722760238175,-500.0,0.00015497,2]
[334091970,1722760238184,-500.0,0.00015497,2]
[334091971,1722760238194,-500.0,0.00015497,2]
[334091972,1722760238205,-500.0,0.00015497,2]
[334091973,1722760238214,-1180.93,0.00015497,2]
[334091974,1722760238224,-500.0,0.00015497,2]
[334091975,1722760238233,-500.0,0.00015497,2]
[334091976,1722760238243,-785.01,0.00015497,2]
[334091977,1722760238252,-500.0,0.00015497,2]
[334091978,1722760238261,-500.0,0.00015497,2]
[334091979,1722760238271,-500.0,0.00015497,2]
[334091980,1722760238280,-500.0,0.00015497,2]
[334091981,1722760238289,-500.0,0.00015497,2]
[334091982,1722760238302,-500.0,0.00015497,2]
[334091983,1722760238311,-500.0,0.00015497,2]
[334091984,1722760238321,-500.0,0.00015497,2]
[334091985,1722760238330,-1177.75,0.00015497,2]
[334091986,1722760238339,-500.0,0.00015497,2]
[334091987,1722760238349,-500.0,0.00015497,2]
[334091988,1722760238358,-500.0,0.00015497,2]
[334091989,1722760238367,-500.0,0.00015497,2]
[334091990,1722760238380,-500.0,0.00015497,2]
[334091991,1722760238390,-500.0,0.00015497,2]
[334091992,1722760238399,-500.0,0.00015497,2]
[334091993,1722760238409,-500.0,0.00015497,2]
[334091994,1722760238418,-500.0,0.00015497,2]
[334091995,1722760238427,-500.0,0.00015497,2]
[334091996,1722760238439,-500.0,0.00015497,2]
[334091997,1722760238451,-500.0,0.00015497,2]
[334091998,1722760238460,-500.0,0.00015497,2]
[334091999,1722760238470,-156.23501674,0.00015497,2]
[334092000,1722760238479,-500.0,0.00015497,2]
[334092001,1722760238490,-500.0,0.00015497,2]
[334092002,1722760238499,-500.0,0.00015497,2]
[334092003,1722760238508,-500.0,0.00015497,2]
[334092004,1722760238517,-500.0,0.00015498,2]
[334092005,1722760238526,-233.61649993,0.00015498,2]
[334092006,1722760238535,-500.0,0.00015498,2]
[334092007,1722760238545,-500.0,0.00015498,2]
[334092008,1722760238555,-500.0,0.00015498,2]
[334092009,1722760238567,-333.76648805,0.00015498,2]
[334092010,1722760238576,-498.26237834,0.00015498,2]
[334092011,1722760238586,-500.0,0.00015498,2]
[334092012,1722760238596,-500.0,0.00015498,2]
[334092013,1722760238607,-500.0,0.00015498,2]
[334092014,1722760238616,-500.0,0.00015498,2]
[334092015,1722760238627,-500.0,0.00015498,2]
[334092016,1722760238638,-500.0,0.00015498,2]
[334092017,1722760238648,-412.05413708,0.00015498,2]
[334092040,1722760242215,-87.94586292,0.00015498,2]
[334092042,1722760242226,-500.0,0.00015498,2]
[334092044,1722760242236,-500.0,0.00015498,2]
[334092045,1722760242246,-500.0,0.00015498,2]
[334092046,1722760242255,-500.0,0.00015498,2]
[334092047,1722760242265,-500.0,0.00015498,2]
[334092048,1722760242274,-500.0,0.00015498,2]
[334092049,1722760242284,-500.0,0.00015498,2]
[334092050,1722760242293,-500.0,0.00015498,2]
[334092051,1722760242305,-500.0,0.00015498,2]
[334092052,1722760242315,-500.0,0.00015498,2]
[334092053,1722760242324,-500.0,0.00015498,2]
[334092054,1722760242333,-378.30704896,0.00015498,2]
[334092055,1722760242345,-121.69295104,0.00015498,2]
[334092056,1722760242355,-500.0,0.00015498,2]
[334092057,1722760242364,-500.0,0.00015498,2]
[334092058,1722760242373,-500.0,0.00015498,2]
[334092060,1722760242384,-500.0,0.00015498,2]
[334092062,1722760242394,-500.0,0.00015498,2]
[334092063,1722760242404,-500.0,0.00015498,2]
[334092064,1722760242413,-500.0,0.00015498,2]
[334092065,1722760242422,-672.55,0.00015498,2]
[334092066,1722760242431,-500.0,0.00015498,2]
[334092067,1722760242444,-500.0,0.00015498,2]
[334092068,1722760242457,-432.83712734,0.00015498,2]
[334092069,1722760242469,-500.0,0.00015498,2]
[334092070,1722760242479,-500.0,0.00015498,2]
[334092071,1722760242488,-500.0,0.00015498,2]
[334092073,1722760242498,-500.0,0.00015498,2]
[334092074,1722760242509,-500.0,0.00015498,2]
[334092075,1722760242521,-500.0,0.00015498,2]
[334092076,1722760242533,-500.0,0.00015498,2]
[334092078,1722760242553,-500.0,0.00015498,2]
[334092080,1722760242565,-500.0,0.00015498,2]
[334092081,1722760242723,-500.0,0.00015498,2]
[334092082,1722760242734,-500.0,0.00015498,2]
[334092083,1722760242744,-187.58865467,0.00015498,2]
[334092084,1722760242754,-500.0,0.00015498,2]
[334092085,1722760242763,-500.0,0.00015498,2]
[334092086,1722760242772,-500.0,0.00015498,2]
[334092087,1722760242783,-500.0,0.00015498,2]
[334092088,1722760242793,-537.16,0.00015498,2]
[334092089,1722760242805,-1526.98,0.00015498,2]
[334092090,1722760242816,-500.0,0.00015498,2]
[334092091,1722760242826,-680.6,0.00015498,2]
[334092092,1722760242836,-704.47,0.00015498,2]
[334092093,1722760242845,-500.0,0.00015498,2]
[334092094,1722760242856,-500.0,0.00015498,2]
[334092095,1722760242867,-500.0,0.00015498,2]
[334092096,1722760242877,-108.83517151,0.00015498,2]
[334092097,1722760242893,-391.16482849,0.00015498,2]
[334092098,1722760242903,-500.0,0.00015499,2]
[334092099,1722760242914,-500.0,0.00015499,2]
[334092100,1722760242923,-500.0,0.00015499,2]
[334092101,1722760242933,-500.0,0.00015499,2]
[334092102,1722760242942,-500.0,0.00015499,2]
[334092103,1722760242952,-500.0,0.00015499,2]
[334092104,1722760242962,-500.0,0.00015499,2]
[334092105,1722760242972,-500.0,0.00015499,2]
[334092106,1722760242982,-500.0,0.00015499,2]
[334092107,1722760242993,-500.0,0.00015499,2]
[334092108,1722760243002,-364.22530902,0.00015499,2]
[334092109,1722760243013,-500.0,0.00015499,2]
[334092110,1722760243024,-500.0,0.00015499,2]
[334092111,1722760243034,-500.0,0.00015598,2]
[334092112,1722760243044,-500.0,0.00015598,2]
[334092113,1722760243055,-495.31261707,0.00015598,2]
[334092114,1722760243065,-500.0,0.00015598,2]
[334092115,1722760243075,-500.0,0.00015598,2]
[334092116,1722760243086,-500.0,0.00015598,2]
[334092117,1722760243096,-504.50013781,0.00015598,2]
[334092118,1722760243106,-500.0,0.00015598,2]
[334092119,1722760243116,-500.0,0.00015598,2]
[334092120,1722760243127,-500.0,0.00015598,2]
[334092121,1722760243138,-500.0,0.00015598,2]
[334092122,1722760243147,-500.0,0.00015598,2]
[334092123,1722760243159,-500.0,0.00015598,2]
[334092124,1722760243170,-500.0,0.00015598,2]
[334092125,1722760243179,-507.34818783,0.00015598,2]
[334092126,1722760243190,-500.0,0.00015598,2]
[334092127,1722760243201,-500.0,0.00015598,2]
[334092128,1722760243212,-500.0,0.00015598,2]
[334092129,1722760243221,-500.0,0.00015598,2]
[334092130,1722760243232,-500.0,0.00015598,2]
[334092131,1722760243242,-500.0,0.00015598,2]
[334092132,1722760243252,-500.0,0.00015598,2]
[334092133,1722760243262,-500.0,0.00015598,2]
[334092134,1722760243272,-500.0,0.00015598,2]
[334092135,1722760243282,-504.37203134,0.00015598,2]
[334092136,1722760243292,-500.41144212,0.00015598,2]
[334092137,1722760243306,-500.0,0.00015598,2]
[334092138,1722760243317,-500.0,0.00015598,2]
[334092139,1722760243326,-500.0,0.00015598,2]
[334092140,1722760243335,-500.0,0.00015598,2]
[334092141,1722760243346,-500.0,0.00015598,2]
[334092142,1722760243356,-500.0,0.00015598,2]
[334092143,1722760243365,-500.0,0.00015598,2]
[334092144,1722760243376,-500.0,0.00015598,2]
[334092145,1722760243386,-500.0,0.00015598,2]
[334092146,1722760243395,-1270.92,0.00015598,2]
[334092147,1722760243404,-500.0,0.00015598,2]
[334092148,1722760243414,-500.0,0.00015598,2]
[334092149,1722760243423,-500.0,0.00015598,2]
[334092150,1722760243434,-500.0,0.00015598,2]
[334092151,1722760243444,-500.0,0.00015598,2]
[334092152,1722760243454,-500.0,0.00015598,2]
[334092153,1722760243464,-150.112233,0.000156,2]
[334092154,1722760243473,-56887.98070344,0.00015684,2]
[334092155,1722760243483,-500.0,0.00015697,2]
[334092156,1722760243492,-680.6,0.00015697,2]
[334092157,1722760243502,-11290.0563877,0.00015697,2]
[334092158,1722760243513,-3616.63116271,0.00015698,2]
[334092159,1722760243525,-511.1056432,0.00015698,2]
[334092315,1722760246158,-500.0,0.00015598,2]
[334092316,1722760246168,-18452.37596949,0.00015698,2]
[334092317,1722760246179,-500.0,0.00015698,2]
[334092318,1722760246189,-500.0,0.00015698,2]
[334092319,1722760246199,-680.6,0.00015698,2]
[334092320,1722760246211,-1252.951873,0.00015699,2]
[334092321,1722760246220,-1252.951873,0.00015699,2]
[334092322,1722760246231,-151.0,0.00015699,2]
[334092323,1722760246240,-151.0,0.00015699,2]
[334092324,1722760246252,-151.0,0.00015699,2]
[334092325,1722760246261,-151.0,0.00015699,2]
[334092326,1722760246272,-151.0,0.00015699,2]
[334092327,1722760246283,-151.0,0.00015699,2]
[334092328,1722760246295,-151.0,0.00015699,2]
[334092329,1722760246309,-6677.04805417,0.00015699,2]
[334092330,1722760246322,-11517.90127873,0.00015699,2]
[334092354,1722760823585,385.82806208,9.999e-05,2]
[334092355,1722760824943,156.96415589,9.999e-05,2]
[334092357,1722760938455,3608.62140677,9.999e-05,2]
[334092358,1722760953004,1000.0,0.00015,15]
[334092360,1722761228111,-275.755116,0.00013802,2]
[334092361,1722761228133,-348.2575741,0.0001382,2]
[334092362,1722761228156,-300.0,0.00013843,2]
[334092363,1722761228177,-300.0,0.00013843,2]
[334092364,1722761228199,-185.27012486,0.00013844,2]
[334092365,1722761236104,-349.15411032,0.00013844,2]
[334092366,1722761241100,-1472.49138128,0.00013844,2]
[334092367,1722761256288,3000.0,9.999e-05,2]
[334092375,1722761365175,-300.0,0.00013843,2]
[334092376,1722761365197,-300.0,0.00013843,2]
[334092377,1722761365222,-12945.04275894,0.00013844,2]
[334092378,1722761365243,-157.521555,0.00013911,2]
[334092379,1722761365265,-2925.75733404,0.00013951,2]
[334092546,1722761438054,-74.24266596,0.00013951,2]
[334092548,1722761438065,-605.820905,0.00014247,2]
[334092550,1722761438074,-154.72922386,0.00015,2]
[334092552,1722761438083,-941.63888488,0.00015,2]
[334092554,1722761438092,-518.21408687,0.00015,2]
[334092556,1722761438102,-1699.99653635,0.00015396,2]
[334092563,1722761438164,-706.2127625,0.00015396,2]
[334092566,1722761438174,-2681.3642437,0.00015396,2]
[334092569,1722761438184,-150.112233,0.000154,2]
[334092572,1722761438194,-367.88690048,0.00015439,2]
[334092575,1722761438205,-2681.36424368,0.00015449,2]
[334092578,1722761438215,-300.0,0.00015485,2]
[334092580,1722761438224,-500.0,0.00015485,2]
[334092595,1722761438368,-500.0,0.00015485,2]
[334092597,1722761438380,-20294.0681829,0.00015486,2]
[334092599,1722761438390,-500.0,0.00015486,2]
[334092601,1722761438402,-170.97678705,0.00015486,2]
[334092603,1722761438412,-200.48393973,0.00015486,2]
[334092605,1722761438423,-500.0,0.00015486,2]
[334092607,1722761438435,-500.0,0.00015486,2]
[334092610,1722761438446,-500.0,0.00015486,2]
[334092612,1722761438457,-500.0,0.00015486,2]
[334092614,1722761438468,-500.0,0.00015486,2]
[334092616,1722761438478,-500.0,0.00015486,2]
[334092618,1722761438488,-500.0,0.00015486,2]
[334092620,1722761438498,-207.7516841,0.00015486,2]
[334092622,1722761438509,-500.0,0.00015486,2]
[334092624,1722761438520,-500.0,0.00015486,2]
[334092626,1722761438530,-500.0,0.00015486,2]
[334092628,1722761438541,-343.03890749,0.00015486,2]
[334092630,1722761438552,-500.0,0.00015486,2]
[334092632,1722761438562,-500.0,0.00015486,2]
[334092635,1722761438574,-215.22706901,0.00015486,2]
[334092636,1722761438584,-500.0,0.00015486,2]
[334092639,1722761438594,-500.0,0.00015486,2]
[334092641,1722761438604,-500.0,0.00015486,2]
[334092643,1722761438613,-500.0,0.00015486,2]
[334092645,1722761438623,-500.0,0.00015486,2]
[334092647,1722761438633,-505.70967278,0.00015486,2]
[334092649,1722761438643,-500.0,0.00015486,2]
[334092651,1722761438653,-518.00887095,0.00015486,2]
[334092653,1722761438663,-500.0,0.00015486,2]
[334092655,1722761438673,-500.0,0.00015486,2]
[334092657,1722761438682,-500.0,0.00015486,2]
[334092659,1722761438696,-506.79672606,0.00015486,2]
[334092661,1722761438709,-501.23449232,0.00015486,2]
[334092663,1722761438719,-500.0,0.00015486,2]
[334092665,1722761438729,-500.0,0.00015486,2]
[334092667,1722761438738,-506.04521931,0.00015486,2]
[334092669,1722761438750,-500.0,0.00015486,2]
[334092671,1722761438761,-500.0,0.00015486,2]
[334092672,1722761438771,-500.0,0.00015486,2]
[334092674,1722761438781,-150.0,0.00015486,2]
[334092676,1722761438790,-813.37,0.00015486,2]
[334092678,1722761438800,-500.0,0.00015486,2]
[334092680,1722761438810,-500.0,0.00015486,2]
[334092682,1722761438819,-500.0,0.00015486,2]
[334092684,1722761438829,-500.0,0.00015486,2]
[334092686,1722761438838,-500.0,0.00015486,2]
[334092688,1722761438848,-500.0,0.00015486,2]
[334092690,1722761438857,-500.0,0.00015486,2]
[334092692,1722761438868,-500.0,0.00015486,2]
[334092694,1722761438878,-1615.02,0.00015486,2]
[334092696,1722761438888,-1263.1,0.00015486,2]
[334092698,1722761438897,-732.46,0.00015486,2]
[334092700,1722761438908,-500.0,0.00015486,2]
[334092702,1722761438917,-500.0,0.00015486,2]
[334092704,1722761438927,-500.0,0.00015486,2]
[334092706,1722761438938,-500.0,0.00015486,2]
[334092708,1722761438949,-495.31261707,0.00015486,2]
[334092710,1722761438959,-500.0,0.00015486,2]
[334092713,1722761438970,-500.0,0.00015486,2]
[334092715,1722761438982,-500.0,0.00015486,2]
[334092717,1722761438992,-500.0,0.00015486,2]
[334092719,1722761439002,-20294.0681829,0.00015487,2]
[334092720,1722761439011,-500.0,0.00015496,2]
[334092722,1722761439020,-500.0,0.00015496,2]
[334092724,1722761439029,-500.0,0.00015496,2]
[334092726,1722761439038,-500.0,0.00015496,2]
[334092728,1722761439048,-497.88815014,0.00015496,2]
[334092730,1722761439057,-507.41428649,0.00015496,2]
[334092732,1722761439067,-500.0,0.00015496,2]
[334092734,1722761439076,-500.0,0.00015496,2]
[334092736,1722761439087,-500.0,0.00015496,2]
[334092738,1722761439096,-500.0,0.00015496,2]
[334092740,1722761439106,-509.3882825,0.00015496,2]
[334092743,1722761439118,-500.0,0.00015496,2]
[334092745,1722761439129,-500.0,0.00015496,2]
[334092747,1722761439138,-500.0,0.00015496,2]
[334092749,1722761439148,-500.635888,0.00015496,2]
[334092751,1722761439158,-500.0,0.00015496,2]
[334092753,1722761439167,-500.0,0.00015496,2]
[334092755,1722761439178,-500.0,0.00015496,2]
[334092757,1722761439189,-500.0,0.00015496,2]
[334092759,1722761439198,-507.34512887,0.00015496,2]
[334092761,1722761439207,-500.0,0.00015496,2]
[334092763,1722761439217,-501.49943879,0.00015496,2]
[334092765,1722761439226,-503.57572084,0.00015496,2]
[334092767,1722761439235,-500.0,0.00015496,2]
[334092769,1722761439245,-500.0,0.00015496,2]
[334092771,1722761439254,-500.0,0.00015496,2]
[334092773,1722761439264,-503.60558488,0.00015496,2]
[334092775,1722761439276,-460.82610274,0.00015496,2]
[334092777,1722761439285,-500.0,0.00015496,2]
[334092779,1722761439295,-501.26392759,0.00015496,2]
[334092781,1722761439304,-500.0,0.00015496,2]
[334092783,1722761439316,-523.20691153,0.00015496,2]
[334092785,1722761439326,-500.0,0.00015496,2]
[334092787,1722761439336,-500.0,0.00015496,2]
[334092789,1722761439346,-500.0,0.00015496,2]
[334092791,1722761439357,-500.0,0.00015496,2]
[334092793,1722761439368,-500.0,0.00015496,2]
[334092795,1722761439379,-500.0,0.00015496,2]
[334092797,1722761439390,-218.18326497,0.00015496,2]
[334092799,1722761439400,-506.03378128,0.00015496,2]
[334092801,1722761439411,-629.90217473,0.00015496,2]
[334092803,1722761439421,-500.0,0.00015496,2]
[334092805,1722761439431,-500.0,0.00015496,2]
[334092807,1722761439440,-500.0,0.00015496,2]
[334092809,1722761439451,-500.0,0.00015496,2]
[334092811,1722761439460,-500.0,0.00015496,2]
[334092813,1722761439471,-500.0,0.00015496,2]
[334092815,1722761439481,-286.27817444,0.00015496,2]
[334092817,1722761439492,-500.0,0.00015496,2]
[334092819,1722761439502,-500.0,0.00015496,2]
[334092821,1722761439512,-500.0,0.00015496,2]
[334092823,1722761439521,-500.0,0.00015496,2]
[334092825,1722761439531,-500.0,0.00015496,2]
[334092827,1722761439541,-500.0,0.00015496,2]
[334092829,1722761439550,-500.0,0.00015496,2]
[334092831,1722761439562,-500.0,0.00015496,2]
[334092833,1722761439572,-500.0,0.00015496,2]
[334092835,1722761439584,-508.87455546,0.00015496,2]
[334092837,1722761439595,-314.34860044,0.00015496,2]
[334092839,1722761439605,-500.0,0.00015496,2]
[334092841,1722761439615,-500.0,0.00015496,2]
[334092843,1722761439625,-500.0,0.00015496,2]
[334092845,1722761439635,-500.0,0.00015496,2]
[334092847,1722761439644,-500.0,0.00015496,2]
[334092849,1722761439655,-500.0,0.00015496,2]
[334092851,1722761439664,-518.36868176,0.00015496,2]
[334092853,1722761439674,-500.0,0.00015496,2]
[334092855,1722761439683,-500.0,0.00015496,2]
[334092857,1722761439698,-500.0,0.00015496,2]
[334092859,1722761439708,-500.0,0.00015496,2]
[334092861,1722761439717,-500.0,0.00015496,2]
[334092863,1722761439726,-500.0,0.00015496,2]
[334092865,1722761439737,-500.0,0.00015496,2]
[334092867,1722761439747,-500.0,0.00015496,2]
[334092869,1722761439757,-198.02,0.00015496,2]
[334092871,1722761439769,-208.97925217,0.00015496,2]
[334092873,1722761439780,-500.0,0.00015496,2]
[334092875,1722761439791,-500.0,0.00015496,2]
[334092877,1722761439800,-500.0,0.00015496,2]
[334092879,1722761439810,-744.41,0.00015496,2]
[334092882,1722761439819,-500.0,0.00015496,2]
[334092885,1722761439829,-164.26021029,0.00015496,2]
[334092887,1722761439838,-500.0,0.00015496,2]
[334092889,1722761439848,-500.0,0.00015496,2]
[334092891,1722761439858,-500.0,0.00015496,2]
[334092893,1722761439868,-500.0,0.00015496,2]
[334092895,1722761439877,-500.0,0.00015496,2]
[334092897,1722761439887,-528.24297539,0.00015496,2]
[334092899,1722761439897,-500.0,0.00015496,2]
[334092901,1722761439906,-500.0,0.00015496,2]
[334092903,1722761439917,-500.0,0.00015496,2]
[334092905,1722761439927,-500.0,0.00015496,2]
[334092907,1722761439936,-500.0,0.00015496,2]
[334092908,1722761439946,-500.0,0.00015496,2]
[334092910,1722761439956,-500.0,0.00015496,2]
[334092912,1722761439966,-500.0,0.00015496,2]
[334092913,1722761439976,-500.0,0.00015496,2]
[334092914,1722761439985,-556.45,0.00015496,2]
[334092915,1722761439995,-500.0,0.00015496,2]
[334092916,1722761440004,-500.0,0.00015496,2]
[334092917,1722761440014,-500.0,0.00015496,2]
[334092918,1722761440024,-500.0,0.00015496,2]
[334092919,1722761440033,-500.0,0.00015496,2]
[334092920,1722761440043,-500.0,0.00015496,2]
[334092921,1722761440052,-500.0,0.00015496,2]
[334092922,1722761440063,-500.0,0.00015496,2]
[334092923,1722761440073,-500.0,0.00015496,2]
[334092924,1722761440084,-500.0,0.00015496,2]
[334092925,1722761440096,-500.0,0.00015496,2]
[334092926,1722761440107,-500.0,0.00015496,2]
[334092928,1722761440118,-500.0,0.00015496,2]
[334092931,1722761440129,-500.0,0.00015496,2]
[334092932,1722761440140,-500.0,0.00015496,2]
[334092933,1722761440149,-500.2630499,0.00015496,2]
[334092935,1722761440159,-195.1536173,0.00015496,2]
[334092936,1722761440169,-500.0,0.00015496,2]
[334092937,1722761440182,-500.0,0.00015496,2]
[334092938,1722761440192,-283.14,0.00015496,2]
[334092939,1722761440204,-500.0,0.00015496,2]
[334092940,1722761440215,-1057.08,0.00015496,2]
[334092941,1722761440225,-500.0,0.00015496,2]
[334092942,1722761440235,-500.0,0.00015496,2]
[334092943,1722761440245,-500.0,0.00015496,2]
[334092944,1722761440256,-153.75,0.00015496,2]
[334092945,1722761440269,-500.0,0.00015496,2]
[334092946,1722761440279,-500.0,0.00015496,2]
[334092947,1722761440290,-500.0,0.00015496,2]
[334092948,1722761440301,-500.0,0.00015496,2]
[334092950,1722761440311,-602.45,0.00015496,2]
[334092952,1722761440321,-500.0,0.00015496,2]
[334092954,1722761440331,-500.0,0.00015496,2]
[334092955,1722761440340,-364.22530902,0.00015496,2]
[334092956,1722761440350,-500.0,0.00015496,2]
[334092957,1722761440359,-500.0,0.00015496,2]
[334092958,1722761440370,-500.0,0.00015497,2]
[334092959,1722761440380,-223.97,0.00015497,2]
[334092960,1722761440392,-500.0,0.00015497,2]
[334092961,1722761440403,-438.21680693,0.00015497,2]
[334092962,1722761440416,-508.03210727,0.00015497,2]
[334092963,1722761440427,-500.0,0.00015497,2]
[334092964,1722761440437,-500.0,0.00015497,2]
[334092965,1722761440447,-500.0,0.00015497,2]
[334092966,1722761440458,-500.0,0.00015497,2]
[334092967,1722761440468,-500.0,0.00015497,2]
[334092970,1722761440480,-227.88386343,0.00015497,2]
[334092972,1722761440490,-500.0,0.00015497,2]
[334092974,1722761440501,-500.0,0.00015497,2]
[334092976,1722761440511,-538.28268608,0.00015497,2]
[334092978,1722761440529,-456.35905197,0.00015497,2]
[334092979,1722761440538,-500.0,0.00015497,2]
[334092980,1722761440547,-500.0,0.00015497,2]
[334092981,1722761440556,-500.0,0.00015497,2]
[334092982,1722761440566,-500.0,0.00015497,2]
[334092983,1722761440575,-460.45151269,0.00015497,2]
[334092984,1722761440584,-500.0,0.00015497,2]
[334092985,1722761440593,-500.0,0.00015497,2]
[334092986,1722761440602,-500.0,0.00015497,2]
[334092987,1722761440611,-500.0,0.00015497,2]
[334092988,1722761440620,-500.0,0.00015497,2]
[334092989,1722761440630,-500.0,0.00015497,2]
[334092990,1722761440638,-504.37203134,0.00015497,2]
[334092991,1722761440647,-500.41144212,0.00015497,2]
[334092992,1722761440656,-500.0,0.00015497,2]
[334092993,1722761440665,-500.0,0.00015497,2]
[334092994,1722761440674,-500.0,0.00015497,2]
[334092995,1722761440683,-500.0,0.00015497,2]
[334092996,1722761440694,-500.0,0.00015497,2]
[334092997,1722761440704,-500.0,0.00015497,2]
[334092998,1722761440717,-500.0,0.00015497,2]
[334092999,1722761440727,-504.37885215,0.00015497,2]
[334093000,1722761440736,-500.0,0.00015497,2]
[334093001,1722761440748,-500.0,0.00015497,2]
[334093002,1722761440759,-500.0,0.00015497,2]
[334093003,1722761440771,-500.0,0.00015497,2]
[334093004,1722761440781,-500.0,0.00015497,2]
[334093005,1722761440792,-500.0,0.00015497,2]
[334093006,1722761440803,-299.21028055,0.00015497,2]
[334093007,1722761440813,-470.00421233,0.00015497,2]
[334093008,1722761440824,-505.047797,0.00015497,2]
[334093009,1722761440834,-500.0,0.00015497,2]
[334093010,1722761440843,-500.0,0.00015497,2]
[334093011,1722761440854,-500.0,0.00015497,2]
[334093012,1722761440863,-500.0,0.00015497,2]
[334093013,1722761440873,-500.0,0.00015497,2]
[334093014,1722761440882,-500.0,0.00015497,2]
[334093015,1722761440893,-500.0,0.00015497,2]
[334093016,1722761440903,-500.0,0.00015497,2]
[334093017,1722761440913,-287.62629265,0.00015497,2]
[334093018,1722761440924,-500.0,0.00015497,2]
[334093019,1722761440936,-500.0,0.00015497,2]
[334093020,1722761440947,-500.0,0.00015497,2]
[334093021,1722761440957,-500.0,0.00015497,2]
[334093022,1722761440967,-500.0,0.00015497,2]
[334093023,1722761440977,-500.0,0.00015497,2]
[334093024,1722761440986,-500.0,0.00015497,2]
[334093025,1722761440997,-1165.55,0.00015497,2]
[334093026,1722761441008,-500.0,0.00015497,2]
[334093027,1722761441019,-500.0,0.00015497,2]
[334093028,1722761441028,-500.0,0.00015497,2]
[334093029,1722761441037,-500.0,0.00015497,2]
[334093030,1722761441046,-500.0,0.00015497,2]
[334093031,1722761441057,-500.0,0.00015497,2]
[334093032,1722761441067,-500.0,0.00015497,2]
[334093033,1722761441079,-500.0,0.00015497,2]
[334093034,1722761441088,-500.0,0.00015497,2]
[334093035,1722761441098,-500.0,0.00015497,2]
[334093036,1722761441108,-1057.08,0.00015497,2]
[334093037,1722761441118,-500.0,0.00015497,2]
[334093038,1722761441129,-500.0,0.00015497,2]
[334093039,1722761441139,-1376.06,0.00015497,2]
[334093040,1722761441149,-500.0,0.00015497,2]
[334093041,1722761441159,-500.0,0.00015497,2]
[334093042,1722761441169,-500.0,0.00015497,2]
[334093043,1722761441180,-500.0,0.00015497,2]
[334093044,1722761441190,-151.0,0.00015497,2]
[334093045,1722761441201,-507.79757809,0.00015498,2]
[334093046,1722761441211,-510.2778818,0.00015498,2]
[334093047,1722761441222,-500.76357155,0.00015498,2]
[334093048,1722761441232,-501.6702609,0.00015498,2]
[334093049,1722761441243,-512.21351941,0.00015498,2]
[334093050,1722761441253,-504.21082443,0.00015498,2]
[334093051,1722761441265,-501.17906568,0.00015498,2]
[334093052,1722761441367,-500.0,0.00015498,2]
[334093053,1722761441378,-2681.36424368,0.00015503,2]
[334093054,1722761441389,-2681.36424368,0.00015556,2]
[334093055,1722761441399,-500.0,0.00015597,2]
[334093056,1722761441410,-1057.08,0.00015597,2]
[334093057,1722761441421,-500.0,0.00015598,2]